bitfinex-derivatives/quotes_ETHF0:USTF0_20250614
["timestamp","ask_amount","ask_price","bid_price","bid_amount"]
[1749926421409,1.3518,2494.3,2493.8,5.21198]
[1749926421608,2.15333,2494.3,2494.2,0.80155]
[1749926421806,3.23038037,2494.3,2494.2,0.80155]
[1749926422615,2.42885037,2494.3,2494.2,0.80155]
[1749926423117,1.07705037,2494.3,2494.2,0.80155]
[1749926423609,2.0111119,2494.6,2494.4,0.80148]
[1749926423807,0.80148,2494.4,2494.2,0.80153]
[1749926424018,4.00776,2494.2,2493.3,3.2078]
[1749926424221,0.80176,2493.6,2493.3,3.2078]
[1749926424511,0.80176,2493.6,2493.4,0.8018]
[1749926424512,1.2934,2493.5,2493.4,0.8018]
[1749926424715,0.8018,2493.4,2493.3,4.00962]
[1749926424910,1.9475,2493.5,2493.3,4.00962]
[1749926425105,1.07680256,2493.4,2493.3,4.00962]
[1749926425311,3.17200256,2493.4,2493.3,4.00962]
[1749926425507,2.37020256,2493.4,2493.3,4.00962]
[1749926425707,2.37020256,2493.4,2493.3,0.80182]
[1749926426207,0.80184,2493.3,2493.2,0.8078719]
[1749926426413,2.36973886,2493.3,2493.2,0.8078819]
[1749926426907,3.17157886,2493.3,2493.2,0.0060119]
[1749926428210,2.36973886,2493.3,2493.2,0.0060119]
[1749926428415,3.17157886,2493.3,2493.2,0.0060119]
[1749926429514,3.85177886,2493.3,2493.2,0.0060119]
[1749926430309,0.80197,2493.0,2492.8,0.80199]
[1749926430515,1.3027,2492.9,2492.8,0.80199]
[1749926431313,0.0060119,2493.1,2493.0,0.80193]
[1749926431820,0.8079119,2493.1,2493.0,3.2078]
[1749926432009,0.802,2492.8,2492.7,4.00981]
[1749926432416,0.802,2492.8,2492.7,3.2078]
[1749926432614,0.80206,2492.6,2492.5,0.80208]
[1749926432812,0.6852,2492.9,2492.4,3.2078]
[1749926432813,2.10474,2492.7,2492.6,0.80205]
[1749926433212,2.10474,2492.7,2492.4,3.2078]
[1749926433213,0.80209,2492.5,2492.4,4.0099]
[1749926433416,1.3027,2492.7,2492.4,3.2078]
[1749926433624,1.3027,2492.7,2491.6,25.314]
[1749926433625,2.00528,2492.5,2491.1,3.2078]
[1749926433813,4.07329978,2492.4,2491.4,3.2078]
[1749926434010,7.90303758,2492.3,2491.7,3.2078]
[1749926434324,0.6331,2492.4,2492.3,0.80216]
[1749926434523,0.6331,2492.4,2492.0,3.2078]
[1749926434727,0.6852,2492.9,2491.5,4.05185]
[1749926434728,0.6852,2492.9,2492.8,0.802]
[1749926434917,0.0060119,2493.1,2492.7,3.2078]
[1749926435112,0.0060119,2493.1,2492.9,0.80194]
[1749926435311,0.8079119,2493.1,2492.9,0.80194]
[1749926435618,0.8079119,2493.1,2493.0,0.06809268]
[1749926435918,5.8079119,2493.1,2493.0,0.06809268]
[1749926436119,8.0843864,2493.1,2492.3,0.80215]
[1749926436320,0.80211,2492.5,2492.1,10.0378]
[1749926436518,3.2078,2492.7,2492.2,0.80216]
[1749926436519,0.80213,2492.4,2492.2,0.80216]
[1749926436719,3.2078,2492.7,2492.1,3.2078]
[1749926436915,3.2078,2492.4,2491.9,0.6718]
[1749926437226,9.19689265,2492.6,2491.4,4.01024]
[1749926437227,3.2078,2492.1,2491.4,4.01024]
[1749926437523,0.80238,2491.7,2491.4,0.80244]
[1749926437726,0.80237,2491.7,2491.4,0.80244]
[1749926437925,3.2138119,2491.8,2491.3,3.2078]
[1749926438131,0.0060119,2491.8,2491.7,0.80235]
[1749926438423,0.0060119,2491.8,2491.6,0.80236]
[1749926439022,0.0060119,2491.8,2491.7,0.80235]
[1749926439213,0.0060119,2491.8,2491.5,0.80239]
[1749926439419,0.0060119,2491.8,2491.3,3.2078]
[1749926439722,0.0060119,2491.8,2491.7,0.80235]
[1749926440119,0.0060119,2491.8,2491.3,3.2078]
[1749926440326,3.2078,2491.6,2491.2,0.00928251]
[1749926440624,6.831,2491.7,2491.2,0.00928251]
[1749926440921,6.8380119,2491.8,2491.3,2.00621]
[1749926441222,6.8380119,2491.8,2491.7,0.80235]
[1749926441427,0.0060119,2491.8,2491.7,0.80235]
[1749926441719,0.0060119,2491.8,2491.6,0.80235]
[1749926441924,0.80235,2491.7,2491.4,1.3856]
[1749926442224,0.0060119,2491.8,2491.4,0.80243]
[1749926442225,0.8024,2491.6,2491.4,0.80243]
[1749926442628,0.80241,2491.6,2491.4,0.80245]
[1749926442928,8.2078,2491.6,2491.2,0.00928251]
[1749926443226,0.80246,2491.4,2491.2,0.81178251]
[1749926443528,0.6934,2491.5,2491.2,0.00928251]
[1749926443728,0.6934,2491.5,2491.4,0.80245]
[1749926444125,0.0060119,2491.8,2491.7,0.80235]
[1749926446320,0.0060119,2491.8,2491.7,2.07225]
[1749926448732,0.0060119,2491.8,2491.7,1.2699]
[1749926448937,0.0060119,2491.8,2491.7,2.07225]
[1749926449734,0.0060119,2491.8,2491.7,2.14034268]
[1749926450235,0.0060119,2491.8,2491.7,0.87044268]
[1749926451040,3.2078,2492.2,2492.1,0.80222]
[1749926451239,3.2078,2492.2,2492.1,7.63522]
[1749926452238,0.0060119,2492.4,2492.3,0.80216]
[1749926452936,0.0060119,2492.4,2492.3,2.18766]
[1749926453339,2.0637,2493.2,2493.0,0.80192]
[1749926453643,2.0637,2493.2,2493.1,0.8019]
[1749926453644,0.6749,2493.2,2493.1,0.8019]
[1749926453946,1.47679,2493.2,2493.0,0.80193]
[1749926454738,0.6749,2493.2,2492.9,0.0060119]
[1749926454943,1.47678,2493.2,2493.0,0.80191]
[1749926455236,1.47679,2493.2,2493.0,0.80191]
[1749926455444,0.8019,2493.1,2492.9,0.8079519]
[1749926455940,4.00973,2493.0,2492.9,0.0060119]
[1749926456141,5.37403,2493.0,2492.9,0.0060119]
[1749926456739,2.00505,2492.8,2492.2,0.6338]
[1749926457041,0.8022,2492.2,2492.0,0.80223]
[1749926457242,0.80221,2492.2,2492.0,0.80223]
[1749926457438,2.011,2492.5,2491.7,12.20149268]
[1749926457643,0.80215,2492.4,2492.2,0.80217]
[1749926458042,3.2078,2492.6,2492.5,0.80209]
[1749926458242,0.6731,2492.7,2492.5,0.80209]
[1749926458439,0.6731,2492.7,2492.3,3.2078]
[1749926458642,0.80201,2492.8,2492.7,0.80202]
[1749926458847,0.80211,2492.5,2492.4,0.80212]
[1749926459240,3.3761,2492.8,2491.9,3.2138119]
[1749926459549,0.80214,2492.4,2492.2,0.80217]
[1749926459744,0.80214,2492.4,2492.3,0.80216]
[1749926459944,3.2078,2492.6,2492.2,0.80218]
[1749926460243,0.80216,2492.3,2492.2,0.80218]
[1749926460441,0.80218,2492.3,2492.2,0.80217]
[1749926460946,0.80214,2492.4,2492.3,0.80215]
[1749926461649,0.80225,2492.0,2491.9,0.0060119]
[1749926461943,4.01005,2492.0,2491.9,0.0060119]
[1749926463241,9.01005,2492.0,2491.9,0.0060119]
[1749926463448,0.80232,2491.8,2491.7,0.06809268]
[1749926463835,5.80232,2491.8,2491.7,0.06809268]
[1749926464041,5.80232,2491.8,2491.2,0.00928251]
[1749926464042,6.71932702,2491.8,2491.2,0.00928251]
[1749926464243,4.01028,2491.3,2491.2,0.00928251]
[1749926464447,0.80248,2491.3,2491.2,0.00928251]
[1749926464850,4.01028,2491.3,2491.2,0.00928251]
[1749926465146,3.2078,2491.3,2491.2,0.81179251]
[1749926465346,4.01028,2491.3,2491.2,0.00928251]
[1749926465541,0.0060119,2491.5,2491.2,0.00928251]
[1749926465846,0.8084519,2491.5,2491.2,0.00928251]
[1749926466036,0.0060119,2491.5,2491.4,0.80245]
[1749926466341,1.3513,2492.1,2491.7,0.80233]
[1749926466535,0.80231,2491.9,2491.7,0.80233]
[1749926466739,0.80232,2491.8,2491.7,0.80234]
[1749926466945,0.80243,2491.5,2491.2,0.63928251]
[1749926467246,0.80247,2491.4,2491.2,0.63928251]
[1749926467548,0.80247,2491.4,2491.3,0.80248]
[1749926467843,3.2138119,2491.6,2491.2,0.00928251]
[1749926468047,0.0060119,2491.6,2491.5,4.01021]
[1749926468243,0.0060119,2491.6,2491.5,0.80241]
[1749926468744,0.8083919,2491.6,2491.4,0.80243]
[1749926468946,0.8083919,2491.6,2491.2,10.12408251]
[1749926469245,0.0060119,2491.6,2491.5,0.80241]
[1749926469646,0.0060119,2491.6,2491.5,4.01021]
[1749926470744,3.2078,2492.1,2492.0,0.80225]
[1749926471050,3.2078,2492.1,2491.9,0.06809268]
[1749926471051,0.80228,2492.0,2491.9,0.06809268]
[1749926471345,3.2078,2492.1,2491.9,0.06809268]
[1749926471549,3.2078,2492.4,2492.3,0.80216]
[1749926472652,0.8080919,2492.6,2492.4,0.8021]
[1749926472952,0.80211,2492.5,2492.1,3.2138119]
[1749926473152,0.8080819,2492.6,2492.2,1.3634]
[1749926473354,0.0060119,2492.6,2492.1,3.2138119]
[1749926473555,2.08031,2492.5,2492.3,0.80213]
[1749926473746,0.80219,2492.2,2492.1,3.2138119]
[1749926474054,4.486,2492.5,2492.1,0.0060119]
[1749926474346,0.6343,2492.4,2492.1,0.0060119]
[1749926474547,0.80219,2492.2,2492.1,0.0060119]
[1749926474750,0.80225,2492.0,2491.9,0.06809268]
[1749926474943,1.87866849,2492.0,2491.9,0.06809268]
[1749926475141,6.87866849,2492.0,2491.9,0.06809268]
[1749926475347,1.87866849,2492.0,2491.9,0.06809268]
[1749926476447,0.80225,2492.0,2491.9,0.06809268]
[1749926477451,4.01001,2492.2,2492.0,0.80224]
[1749926477653,0.80222,2492.1,2492.0,0.80224]
[1749926477853,0.80222,2492.1,2491.9,0.87036268]
[1749926478151,5.36471,2492.2,2492.0,0.80224]
[1749926478353,5.3647,2492.2,2492.0,0.80224]
[1749926478556,3.2078,2492.2,2492.1,0.80222]
[1749926478748,3.2078,2492.2,2492.0,0.80224]
[1749926478948,4.01,2492.2,2492.0,0.80224]
[1749926479154,3.2078,2492.2,2492.1,0.80222]
[1749926479552,4.01,2492.2,2492.0,0.80223]
[1749926479750,4.01,2492.2,2492.1,0.80222]
[1749926479951,3.2078,2492.2,2492.1,0.80222]
[1749926481860,3.2078,2492.2,2492.1,7.71022]
[1749926482659,3.2078,2492.2,2492.1,0.80222]
[1749926482852,3.2078,2492.2,2491.9,0.06809268]
[1749926483053,4.01001,2492.2,2491.9,0.06809268]
[1749926483254,3.2078,2492.2,2491.9,0.06809268]
[1749926483559,3.2078,2492.2,2492.0,0.80224]
[1749926483757,3.2078,2492.2,2492.1,0.80222]
[1749926483961,0.0060119,2492.6,2492.5,0.80209]
[1749926484152,0.0060119,2492.6,2492.2,2.00544]
[1749926484153,0.8080819,2492.6,2492.2,1.9171]
[1749926484354,0.0060119,2492.6,2492.5,0.80209]
[1749926486263,0.8080719,2492.6,2492.5,0.80209]
[1749926486567,0.0060119,2492.6,2492.2,1.9171]
[1749926486767,0.8021,2492.5,2492.4,0.80211]
[1749926487066,0.0060119,2492.6,2492.2,7.6191]
[1749926487363,1.3621119,2492.6,2492.2,7.6191]
[1749926487560,0.0060119,2492.6,2492.5,0.80209]
[1749926490166,31.237,2493.5,2492.5,0.80209]
[1749926490167,0.80184,2493.3,2492.8,2.00497]
[1749926490370,1.3078,2493.5,2493.0,4.00972]
[1749926490568,2.00454,2493.4,2492.9,0.80194]
[1749926490769,1.3874,2493.3,2492.9,4.00974]
[1749926490969,1.3874,2493.3,2492.9,3.2078]
[1749926491170,0.80188,2493.2,2493.1,0.80189]
[1749926491474,1.3934119,2493.3,2492.9,3.2138119]
[1749926491663,0.80191,2493.1,2493.0,0.80192]
[1749926491858,1.3934119,2493.3,2493.1,0.80188]
[1749926492058,0.0060119,2493.3,2493.2,0.80187]
[1749926492363,0.8078519,2493.3,2493.2,0.80187]
[1749926492569,0.80193,2493.1,2493.0,0.80192]
[1749926493163,2.18928,2493.2,2493.1,0.8019]
[1749926493369,0.8078619,2493.3,2493.2,0.80187]
[1749926493569,0.0060119,2493.3,2493.2,0.80187]
[1749926494669,0.0060119,2493.3,2493.2,4.00967]
[1749926495282,0.8078519,2493.3,2493.2,4.00967]
[1749926495475,0.8078519,2493.3,2492.9,7.04010458]
[1749926495476,0.80192,2493.1,2492.9,7.04010458]
[1749926495668,0.80193,2493.0,2492.9,0.07410458]
[1749926496177,0.80192,2493.1,2492.9,0.07410458]
[1749926496378,0.80192,2493.1,2493.0,0.80192]
[1749926496673,0.80193,2493.0,2492.9,0.87604458]
[1749926498474,0.80193,2493.0,2492.9,0.07410458]
[1749926498771,0.0060119,2493.3,2492.9,3.28190458]
[1749926498972,0.0060119,2493.3,2493.2,4.00967]
[1749926499473,0.8078519,2493.3,2493.2,4.00967]
[1749926499774,0.80189,2493.2,2493.1,0.80188]
[1749926499975,0.8078619,2493.3,2493.2,0.80187]
[1749926501577,0.0060119,2493.3,2493.1,3.2078]
[1749926501772,0.0060119,2493.3,2492.9,0.72600458]
[1749926501973,0.80193,2493.0,2492.9,1.52795458]
[1749926502371,0.80188,2493.2,2493.1,0.80187]
[1749926503168,0.80192,2493.1,2493.0,0.80191]
[1749926503776,0.80189,2493.2,2493.1,0.80187]
[1749926504076,0.0060119,2493.3,2492.9,0.07410458]
[1749926504275,4.00973,2493.0,2492.9,0.07410458]
[1749926505277,10.08505695,2493.0,2492.9,0.07410458]
[1749926506273,0.80209,2492.5,2492.4,3.2078]
[1749926506573,0.80222,2492.1,2492.0,3.2078]
[1749926506879,0.8022,2492.2,2492.1,0.8022]
[1749926507178,0.80222,2492.1,2492.0,3.2078]
[1749926507378,1.3372,2492.4,2492.1,0.80222]
[1749926507672,0.80222,2492.1,2492.0,3.2078]
[1749926507876,0.80229,2491.9,2491.8,0.0060119]
[1749926508475,5.80229,2491.9,2491.8,0.0060119]
[1749926508872,0.80245,2491.4,2491.3,4.01028]
[1749926509173,0.80245,2491.4,2491.3,3.2078]
[1749926509375,0.80245,2491.4,2491.3,4.01028]
[1749926509580,0.80245,2491.4,2491.3,3.2078]
[1749926509780,0.80244,2491.5,2491.3,4.01028]
[1749926509980,0.80244,2491.5,2491.4,0.80245]
[1749926510173,2.024,2491.7,2491.4,0.80242]
[1749926510373,0.80241,2491.6,2491.4,0.80243]
[1749926510674,0.80241,2491.5,2491.4,0.80243]
[1749926511478,0.80241,2491.5,2491.3,4.01025]
[1749926511681,0.80245,2491.4,2491.3,3.2078]
[1749926511874,0.80248,2491.3,2491.2,0.00928251]
[1749926513076,0.80264,2490.8,2490.7,2.01881]
[1749926513279,3.2078,2490.8,2490.0,3.2078]
[1749926513471,0.0060119,2490.6,2490.0,3.2078]
[1749926513670,0.0060119,2490.6,2490.5,0.80274]
[1749926513879,3.2078,2491.1,2491.0,0.80258]
[1749926514179,0.6459,2491.2,2491.1,0.80254]
[1749926514568,0.6459,2491.2,2491.0,3.2078]
[1749926515173,0.6459,2491.2,2491.1,0.80254]
[1749926515379,0.6459,2491.2,2491.0,3.2078]
[1749926515380,0.80254,2491.1,2491.0,3.2078]
[1749926515575,0.6459,2491.2,2490.9,0.0060119]
[1749926515780,0.80256,2491.1,2490.9,0.8086019]
[1749926515980,0.6459,2491.2,2491.1,0.80254]
[1749926516182,0.0060119,2491.3,2491.2,0.80251]
[1749926518180,0.0060119,2491.3,2491.2,2.85021]
[1749926519081,0.80239,2491.6,2491.2,2.0477]
[1749926519383,0.80245,2491.4,2491.3,3.2078]
[1749926520179,11.5032,2491.5,2491.0,3.2078]
[1749926520379,3.2078,2491.2,2490.9,0.0060119]
[1749926520678,0.80258,2491.0,2490.9,0.0060119]
[1749926521795,0.80278,2490.4,2490.2,3.2078]
[1749926521983,5.21441,2490.8,2490.2,4.01061]
[1749926522184,8.3013,2490.7,2490.3,0.80278]
[1749926522382,3.2078,2490.8,2490.5,0.80273]
[1749926522580,0.8028,2490.3,2490.2,3.2078]
[1749926522786,0.80286,2490.2,2490.0,0.8089019]
[1749926522981,0.80285,2490.2,2490.1,0.80286]
[1749926523288,0.80287,2490.1,2490.0,0.0060119]
[1749926523487,6.9980119,2490.3,2490.0,0.0060119]
[1749926523488,1.9912,2490.2,2490.0,0.0060119]
[1749926523687,0.80287,2490.1,2490.0,0.0060119]
[1749926523891,2.79403,2490.2,2490.0,0.0060119]
[1749926524080,0.6819,2490.2,2490.1,0.80287]
[1749926524282,0.80287,2490.1,2490.0,0.0060119]
[1749926524877,9.01067,2490.1,2490.0,1.9e-06]
[1749926525083,7.79587,2490.1,2490.0,1.9e-06]
[1749926525300,0.0060119,2490.3,2490.0,3.2078019]
[1749926525684,0.0060119,2490.3,2490.2,0.80283]
[1749926525883,3.2078,2491.6,2491.0,0.80255]
[1749926526091,6.993,2491.5,2491.0,3.2078]
[1749926526288,5.21401,2491.3,2490.6,3.2078]
[1749926526584,0.80262,2490.9,2490.7,0.80265]
[1749926526789,0.80267,2490.7,2490.6,3.28190458]
[1749926526984,0.80267,2490.7,2490.6,0.07410458]
[1749926527590,2.07576,2490.8,2490.6,0.07410458]
[1749926527787,0.0060119,2491.0,2490.6,3.28190458]
[1749926527994,0.0060119,2491.0,2490.9,3.2078]
[1749926528389,0.8085919,2491.0,2490.9,3.2078]
[1749926528590,0.8085919,2491.0,2490.6,0.07410458]
[1749926528591,0.80264,2490.8,2490.6,0.07410458]
[1749926528788,1.2791119,2491.0,2490.6,0.07410458]
[1749926528983,1.2791119,2491.0,2490.6,3.28190458]
[1749926529295,0.0060119,2491.0,2490.6,3.28190458]
[1749926529793,0.8086019,2491.0,2490.9,3.2078]
[1749926530088,0.0060119,2491.0,2490.9,4.01041]
[1749926530289,0.0060119,2491.0,2490.9,3.2078]
[1749926530494,0.80261,2490.9,2490.6,0.07410458]
[1749926530694,0.80265,2490.8,2490.6,0.87679458]
[1749926530896,0.80266,2490.8,2490.6,0.87679458]
[1749926531089,0.0060119,2491.0,2490.9,0.80261]
[1749926532387,0.0060119,2491.0,2490.9,5.80261]
[1749926532586,1.3381,2491.9,2490.9,5.80261]
[1749926532587,5.21324,2492.3,2491.0,2.00644]
[1749926532802,0.80235,2491.7,2491.6,3.2078]
[1749926532990,0.80238,2491.6,2491.4,7.79543]
[1749926533197,0.80233,2491.8,2491.6,0.80236]
[1749926533388,0.80237,2491.7,2491.5,0.8024]
[1749926533589,0.8024,2491.6,2491.4,7.79543]
[1749926533789,0.80237,2491.7,2491.5,0.80239]
[1749926533985,0.8083419,2491.8,2491.4,6.993]
[1749926534186,0.0060119,2491.8,2491.7,0.80235]
[1749926534698,0.0060119,2491.8,2491.6,0.80237]
[1749926534901,0.8083419,2491.8,2491.6,0.80237]
[1749926535286,0.8083419,2491.8,2491.6,3.2078]
[1749926535690,0.0060119,2491.8,2491.7,0.80235]
[1749926535895,0.0060119,2491.8,2491.7,2.17365]
[1749926536090,0.0060119,2491.8,2491.4,6.993]
[1749926536091,0.0060119,2491.8,2491.4,0.80245]
[1749926536294,0.80241,2491.6,2491.4,0.80245]
[1749926536690,0.80241,2491.6,2491.4,0.80242]
[1749926536897,0.0060119,2491.8,2491.3,5.21399]
[1749926537087,0.0060119,2491.8,2491.7,0.80235]
[1749926537288,0.0060119,2491.8,2491.6,3.2078]
[1749926537487,0.80235,2491.7,2491.6,3.2078]
[1749926537691,0.0060119,2491.8,2491.7,0.80235]
[1749926537890,0.80235,2491.7,2491.6,3.2078]
[1749926538300,1.2829,2491.7,2491.3,4.01026]
[1749926538494,0.80243,2491.5,2491.4,0.80244]
[1749926538695,1.2829,2491.7,2491.3,3.2078]
[1749926538895,0.80245,2491.4,2491.3,3.2078]
[1749926539094,0.80248,2491.3,2491.2,0.8025]
[1749926539303,1.48231,2491.6,2491.1,9.68032]
[1749926539497,0.6799,2491.6,2491.3,3.2078]
[1749926539705,0.0060119,2491.8,2491.7,0.80235]
[1749926540097,0.0060119,2491.8,2491.7,2.86525]
[1749926541906,0.0060119,2491.8,2491.7,9.85725]
[1749926543200,0.6517,2492.4,2491.7,14.0549]
[1749926543404,3.2078,2492.9,2492.3,3.2078]
[1749926543599,0.80212,2492.4,2492.3,3.2078]
[1749926543799,0.80212,2492.4,2492.0,0.80222]
[1749926543800,0.80222,2492.1,2492.0,3.2078]
[1749926544000,0.80223,2492.1,2491.9,0.80229]
[1749926544301,0.8082119,2492.2,2491.8,0.0060119]
[1749926544500,0.80224,2492.1,2491.9,0.80228]
[1749926544807,0.0060119,2492.2,2491.9,0.80228]
[1749926545102,0.8082219,2492.2,2492.0,0.80224]
[1749926545405,0.8082119,2492.2,2492.0,0.80224]
[1749926545607,0.8082119,2492.2,2491.8,0.0060119]
[1749926545805,0.8082119,2492.2,2492.0,0.80222]
[1749926546003,0.80222,2492.1,2492.0,0.80222]
[1749926546206,0.0060119,2492.2,2491.9,0.80226]
[1749926546404,0.80229,2491.9,2491.8,0.0060119]
[1749926546706,0.80228,2492.0,2491.8,0.8083119]
[1749926546906,2.75953,2492.1,2491.8,0.0060119]
[1749926547105,2.75953,2492.1,2491.9,0.80229]
[1749926547306,0.6829,2492.1,2492.0,0.80225]
[1749926547507,0.0060119,2492.2,2492.1,0.80222]
[1749926548005,0.0060119,2492.2,2492.1,14.83742]
[1749926548205,3.2078,2492.9,2492.3,2.00533]
[1749926548506,3.2078,2492.9,2492.8,0.802]
[1749926548706,1.3806,2493.1,2493.0,0.80193]
[1749926548911,2.1825,2493.1,2492.7,3.2078]
[1749926549206,1.3866119,2493.1,2492.9,0.80196]
[1749926549414,0.0060119,2493.1,2493.0,0.80193]
[1749926549804,0.8079119,2493.1,2493.0,0.80193]
[1749926549999,0.8079119,2493.1,2492.9,0.80194]
[1749926550206,0.0060119,2493.1,2492.6,1.9537]
[1749926550408,1.2926,2493.0,2492.6,9.0377]
[1749926550607,0.80197,2492.9,2492.8,0.80199]
[1749926550806,0.80197,2492.9,2492.6,9.0377]
[1749926550807,0.0060119,2493.1,2492.9,0.80196]
[1749926551113,0.0060119,2493.1,2492.9,0.80194]
[1749926551313,0.802,2492.9,2492.7,4.00981]
[1749926551507,0.802,2492.8,2492.7,3.2078]
[1749926552306,0.802,2492.8,2492.5,7.084]
[1749926552307,2.00484,2493.0,2492.5,0.80208]
[1749926552515,0.80207,2492.6,2492.4,7.083]
[1749926552713,0.6282,2492.9,2492.5,0.80207]
[1749926552916,0.80206,2492.7,2492.5,0.80207]
[1749926553110,0.80206,2492.6,2492.4,7.083]
[1749926553417,0.80206,2492.7,2492.5,0.80207]
[1749926553618,0.80209,2492.5,2492.4,0.80211]
[1749926553914,0.80211,2492.5,2492.4,0.80212]
[1749926554915,0.80212,2492.5,2492.3,4.00993]
[1749926555115,0.802,2492.8,2492.4,2.00532]
[1749926555320,1.43019,2492.9,2492.7,0.802]
[1749926555522,0.6282,2492.9,2492.6,3.2078]
[1749926555724,0.6282,2492.9,2492.4,1.3605]
[1749926555926,0.80204,2492.7,2492.6,0.80204]
[1749926556524,0.80198,2492.9,2492.8,0.802]
[1749926557019,0.80199,2492.9,2492.8,0.802]
[1749926558019,0.802,2492.8,2492.7,0.06809268]
[1749926559124,0.802,2492.8,2492.7,0.87012268]
[1749926559320,0.802,2492.8,2492.7,0.06809268]
[1749926559623,0.80198,2492.9,2492.8,0.80198]
[1749926560025,0.80198,2492.9,2492.7,0.06809268]
[1749926560026,0.802,2492.8,2492.7,0.87010268]
[1749926560418,0.80199,2492.9,2492.8,0.80199]
[1749926560618,0.802,2492.8,2492.7,0.87010268]
[1749926560821,0.802,2492.8,2492.7,0.06809268]
[1749926562729,7.884,2492.8,2492.7,0.06809268]
[1749926563023,0.80222,2492.1,2492.0,7.082]
[1749926563528,0.80222,2492.1,2492.0,7.88425]
[1749926564030,0.6343,2492.7,2492.2,2.00548]
[1749926564324,0.6929,2492.8,2492.2,2.00548]
[1749926564527,0.80206,2492.7,2492.6,0.80204]
[1749926564924,1.49491,2492.8,2492.7,0.80203]
[1749926565125,0.80201,2492.8,2492.4,12.29505]
[1749926565424,0.80201,2492.8,2492.7,0.87010268]
[1749926566523,0.6929,2492.9,2492.8,0.802]
[1749926566725,0.0060119,2493.1,2493.0,0.80193]
[1749926566920,0.0060119,2493.1,2492.7,10.35789268]
[1749926567123,0.80196,2493.0,2492.9,0.80196]
[1749926567328,1.3196119,2493.1,2492.7,10.35789268]
[1749926567529,0.80195,2493.0,2492.9,0.80196]
[1749926567830,0.80197,2492.9,2492.8,0.80198]
[1749926568031,0.80193,2493.0,2492.8,0.80196]
[1749926568231,0.80193,2493.0,2492.7,10.35789268]
[1749926568431,0.80193,2493.0,2492.9,0.80196]
[1749926569627,0.80193,2493.0,2492.7,10.35789268]
[1749926569833,1.3196119,2493.1,2492.7,10.35789268]
[1749926570130,0.802,2492.8,2492.7,4.07789268]
[1749926570327,0.802,2492.8,2492.7,3.27589268]
[1749926570533,0.802,2492.8,2492.7,0.06809268]
[1749926571535,0.802,2492.8,2492.7,0.87012268]
[1749926571839,0.802,2492.8,2492.7,0.06809268]
[1749926572332,10.2888,2493.0,2492.7,0.06809268]
[1749926572333,3.2078,2493.0,2492.7,0.06809268]
[1749926572530,0.80194,2493.0,2492.8,0.80197]
[1749926572737,0.80196,2492.9,2492.8,0.80197]
[1749926572936,0.80196,2493.0,2492.8,0.80197]
[1749926573132,1.3718119,2493.1,2492.7,3.27589268]
[1749926573335,0.0060119,2493.1,2493.0,0.80193]
[1749926574844,3.2078,2493.7,2493.2,0.80187]
[1749926575037,1.07931413,2493.6,2493.5,0.80177]
[1749926575228,1.07931413,2493.6,2493.3,4.5047]
[1749926575229,4.00952,2493.7,2493.3,12.8654]
[1749926575432,3.2078,2493.7,2493.6,0.80174]
[1749926575831,0.0060119,2493.9,2493.4,0.0060119]
[1749926576033,0.0060119,2493.9,2493.8,0.80168]
[1749926576736,3.2078,2494.4,2493.8,5.0]
[1749926576933,3.2078,2494.4,2493.9,0.6332]
[1749926577132,3.2078,2494.4,2494.3,0.80151]
[1749926577334,0.80146,2494.5,2494.3,0.8015]
[1749926577537,0.80148,2494.4,2494.3,0.8015]
[1749926577736,0.8016,2494.1,2493.9,0.6332]
[1749926577935,0.80172,2493.7,2493.5,0.6735]
[1749926578139,0.80167,2493.9,2493.5,0.6735]
[1749926578334,0.80167,2493.9,2493.7,0.8017]
[1749926578937,2.85273,2494.0,2493.8,0.80168]
[1749926579137,0.6727,2494.0,2493.9,0.80164]
[1749926579635,0.6727,2494.0,2493.5,7.15629]
[1749926579636,0.80164,2493.9,2493.7,0.80169]
[1749926579840,0.80167,2493.9,2493.6,6.981]
[1749926580040,1.47433,2494.0,2493.8,0.80167]
[1749926580237,0.80164,2493.9,2493.8,0.80167]
[1749926580430,0.80164,2493.9,2493.8,0.80168]
[1749926580633,8.2078,2493.9,2493.4,0.0060119]
[1749926580840,0.80177,2493.5,2493.4,0.0060119]
[1749926581051,6.88713637,2493.5,2493.4,0.0060119]
[1749926581239,0.80195,2493.0,2492.7,3.27589268]
[1749926581555,0.80196,2493.0,2492.8,0.80199]
[1749926581939,0.80196,2493.0,2492.9,0.80196]
[1749926582146,0.80192,2493.1,2493.0,0.80193]
[1749926582444,0.80193,2493.0,2492.8,0.8079919]
[1749926582643,1.3593,2493.1,2492.8,0.8079919]
[1749926582644,0.80196,2492.9,2492.8,0.0060119]
[1749926582843,2.16126,2492.9,2492.8,0.0060119]
[1749926583842,2.79276,2492.9,2492.8,0.0060119]
[1749926585743,2.79276,2492.9,2492.8,0.07410458]
[1749926588548,4.01022,2492.7,2492.0,0.6534]
[1749926588745,0.80217,2492.3,2492.2,0.80217]
[1749926588952,6.52412,2492.6,2492.0,1.45564]
[1749926589154,0.6327,2492.5,2492.0,0.6534]
[1749926589349,3.2078,2492.6,2492.1,2.00556]
[1749926589550,3.2078,2492.6,2492.5,0.80209]
[1749926590349,3.2078,2492.6,2492.4,0.80212]
[1749926590544,0.80215,2492.4,2492.1,0.0060119]
[1749926590852,0.80214,2492.4,2492.3,0.80214]
[1749926591755,3.2078,2492.6,2492.1,2.0115219]
[1749926591756,4.00988,2492.6,2492.1,2.0115219]
[1749926592054,0.8021,2492.5,2492.4,0.80211]
[1749926592443,4.00988,2492.6,2492.4,0.80211]
[1749926592656,0.80209,2492.5,2492.4,0.80211]
[1749926593351,3.2078,2492.6,2492.1,1.3004119]
[1749926593559,0.80211,2492.5,2492.4,0.80211]
[1749926594454,0.80209,2492.5,2492.3,0.80213]
[1749926594651,0.80209,2492.5,2492.4,0.80213]